bitfinex/quotes_ETHUSD_20250322
["timestamp","ask_amount","ask_price","bid_price","bid_amount"]
[1742602321193,5.06688,1973.6,1973.3,10.18600764]
[1742602322076,10.95111,1973.7,1973.4,5.06731]
[1742602322273,10.95111,1973.7,1973.3,10.18600764]
[1742602322472,5.06689,1973.6,1973.3,10.18600764]
[1742602322874,5.88442,1973.7,1973.4,5.06718]
[1742602323065,10.95128,1973.7,1973.3,10.18603764]
[1742602323581,5.88442,1973.7,1973.3,15.25353764]
[1742602323899,5.0669,1973.6,1973.3,10.18598764]
[1742602325095,5.88442,1973.7,1973.3,15.25337764]
[1742602325303,10.95122,1973.7,1973.3,15.25337764]
[1742602325616,8.87413,1973.9,1973.3,5.11846764]
[1742602325758,0.808,1973.9,1973.6,5.06684]
[1742602326102,5.06599,1974.0,1973.6,10.13357]
[1742602326309,5.06612,1973.9,1973.6,5.06677]
[1742602327628,6.908,1974.1,1973.7,9.80558]
[1742602327927,5.87371,1974.1,1973.8,26.788]
[1742602328227,5.06585,1974.0,1973.8,26.788]
[1742602329486,10.93953,1974.1,1973.8,26.788]
[1742602330135,5.06587,1974.0,1973.8,26.788]
[1742602331389,10.13188,1974.0,1973.8,26.788]
[1742602331716,5.06587,1974.0,1973.8,26.788]
[1742602332532,10.13191,1974.0,1973.8,26.788]
[1742602332730,10.13188,1974.0,1973.8,26.788]
[1742602332935,5.06611,1973.9,1973.8,26.788]
[1742602333429,5.87411,1973.9,1973.8,26.788]
[1742602337714,11.97411,1973.9,1973.8,26.788]
[1742602339651,5.06713,1973.5,1973.4,4.736]
[1742602339942,5.87513,1973.5,1973.4,4.736]
[1742602340141,5.06749,1973.4,1973.2,32.55815692]
[1742602340647,5.06749,1973.4,1973.2,27.82215692]
[1742602340955,5.87513,1973.5,1973.2,32.55815692]
[1742602341156,5.06713,1973.5,1973.2,37.62500692]
[1742602342265,10.13443,1973.5,1973.2,32.55715692]
[1742602342658,10.13443,1973.5,1973.2,27.82215692]
[1742602342862,10.13443,1973.5,1973.2,32.55615692]
[1742602343459,5.06713,1973.5,1973.2,37.62398692]
[1742602343667,5.06713,1973.5,1973.2,37.62397692]
[1742602343961,10.13405,1973.6,1973.2,37.62393692]
[1742602344248,5.06698,1973.6,1973.3,5.06763]
[1742602344419,10.13405,1973.6,1973.2,37.62393692]
[1742602344620,10.13405,1973.6,1973.2,32.88993692]
[1742602344850,10.13405,1973.6,1973.3,4.734]
[1742602345327,5.06715,1973.5,1973.3,4.734]
[1742602345648,10.13397,1973.6,1973.3,4.734]
[1742602345847,10.13397,1973.6,1973.3,4.733]
[1742602347223,5.06698,1973.6,1973.3,4.733]
[1742602347422,10.13402,1973.6,1973.3,4.733]
[1742602347622,10.134,1973.6,1973.3,4.733]
[1742602347822,10.13401,1973.6,1973.3,4.733]
[1742602348033,10.13401,1973.6,1973.3,5.11057845]
[1742602348351,5.06698,1973.6,1973.3,5.11057845]
[1742602348519,10.13403,1973.6,1973.3,5.11057845]
[1742602349143,10.13403,1973.6,1973.3,4.733]
[1742602349755,10.13403,1973.6,1973.3,4.729]
[1742602350945,10.13402,1973.6,1973.3,4.729]
[1742602351162,5.06698,1973.6,1973.3,4.729]
[1742602351319,5.06722,1973.5,1973.3,4.729]
[1742602351652,5.06722,1973.5,1973.3,31.516]
[1742602351823,10.13452,1973.5,1973.3,31.516]
[1742602352123,5.06722,1973.5,1973.3,31.516]
[1742602353938,5.06722,1973.5,1973.3,26.787]
[1742602355350,5.06739,1973.4,1973.3,26.787]
[1742602355554,5.83019,1973.4,1973.3,26.787]
[1742602357453,5.06739,1973.4,1973.3,26.787]
[1742602360164,0.7628,1973.6,1973.3,31.85441]
[1742602360369,5.06668,1973.7,1973.3,37.69522]
[1742602361163,10.13348,1973.7,1973.3,32.62771]
[1742602361328,5.06668,1973.7,1973.3,32.62771]
[1742602361527,5.06688,1973.6,1973.3,32.62771]
[1742602361762,10.13394,1973.6,1973.3,27.5603]
[1742602361963,5.0672,1973.5,1973.3,27.5603]
[1742602362133,5.0672,1973.5,1973.3,26.787]
[1742602362752,10.13401,1973.6,1973.3,26.787]
[1742602362962,5.06688,1973.6,1973.3,26.787]
[1742602363169,5.06715,1973.5,1973.3,27.17491659]
[1742602363537,5.06688,1973.6,1973.3,27.17491659]
[1742602363863,5.06688,1973.6,1973.3,32.24255659]
[1742602364064,5.06688,1973.6,1973.3,27.17491659]
[1742602364362,10.13393,1973.6,1973.3,27.17491659]
[1742602365060,5.06688,1973.6,1973.3,27.17491659]
[1742602365269,0.7628,1973.5,1973.3,26.787]
[1742602365466,10.89738,1973.5,1973.3,26.787]
[1742602366038,5.06739,1973.4,1973.3,26.787]
[1742602367233,6.157135,1973.4,1973.3,26.787]
[1742602367756,6.919935,1973.4,1973.3,26.787]
[1742602371572,5.83759,1972.7,1972.6,26.79]
[1742602379758,11.95059,1972.7,1972.6,26.79]
[1742602379957,13.652553,1972.7,1972.6,26.79]
[1742602380169,13.652553,1972.7,1972.1,4.731]
[1742602380170,5.07047,1972.2,1972.1,4.731]
[1742602381450,5.07029,1972.3,1972.1,4.731]
[1742602381649,5.07,1972.4,1972.1,4.731]
[1742602381850,10.14014,1972.4,1972.1,4.731]
[1742602382151,5.07,1972.4,1972.1,5.5465]
[1742602382346,5.06971,1972.5,1972.1,10.61715]
[1742602382347,5.06988,1972.5,1972.1,10.61715]
[1742602382575,5.06988,1972.5,1972.2,5.07038]
[1742602382852,5.06988,1972.5,1972.1,10.61715]
[1742602383275,5.06988,1972.5,1972.1,15.68773]
[1742602383461,5.06987,1972.5,1972.1,10.61708]
[1742602383666,5.07001,1972.4,1972.1,10.61708]
[1742602383888,10.13975,1972.5,1972.1,10.61708]
[1742602385586,5.06987,1972.5,1972.1,10.61708]
[1742602385789,10.13974,1972.5,1972.1,10.61708]
[1742602386089,10.13974,1972.5,1972.2,0.99273422]
[1742602387890,5.06987,1972.5,1972.2,26.801]
[1742602388067,10.13974,1972.5,1972.2,26.801]
[1742602388394,5.06999,1972.4,1972.2,26.801]
[1742602388997,10.14012,1972.4,1972.2,26.801]
[1742602389289,5.07022,1972.3,1972.2,26.801]
[1742602391196,5.06973,1972.5,1972.2,26.801]
[1742602392095,5.07005,1972.4,1972.2,26.801]
[1742602392487,5.06973,1972.5,1972.2,26.801]
[1742602392691,10.1396,1972.5,1972.2,26.801]
[1742602392876,5.06997,1972.4,1972.2,26.801]
[1742602394000,5.06973,1972.5,1972.2,26.801]
[1742602394189,5.06973,1972.5,1972.2,31.87146]
[1742602394717,5.06973,1972.5,1972.2,26.801]
[1742602395022,5.06973,1972.5,1972.2,31.87145]
[1742602395794,10.13962,1972.5,1972.2,26.801]
[1742602395980,5.06973,1972.5,1972.2,26.801]
[1742602396198,5.06973,1972.5,1972.2,31.87134]
[1742602396407,10.1391,1972.6,1972.2,31.87129]
[1742602396573,5.06972,1972.5,1972.2,36.94164]
[1742602396778,5.06972,1972.5,1972.2,31.87129]
[1742602397002,5.06972,1972.5,1972.2,36.94167]
[1742602397378,5.06948,1972.6,1972.2,36.94167]
[1742602397579,6.1,1972.7,1972.5,5.06963]
[1742602397814,6.1,1972.7,1972.6,0.7944]
[1742602398113,5.06902,1972.8,1972.6,0.7944]
[1742602398581,10.13811,1972.8,1972.6,0.7944]
[1742602398781,5.06902,1972.8,1972.6,0.7944]
[1742602399181,10.13853,1972.7,1972.5,4.728]
[1742602399483,5.06919,1972.7,1972.5,4.728]
[1742602400084,5.06945,1972.6,1972.5,4.728]
[1742602402339,5.06945,1972.6,1972.5,31.53]
[1742602412728,5.06919,1972.7,1972.5,31.53]
[1742602413523,10.13856,1972.7,1972.5,31.53]
[1742602413826,5.06919,1972.7,1972.5,31.53]
[1742602414325,10.13802,1972.8,1972.5,31.53]
[1742602414526,10.13659,1973.1,1972.8,5.06883]
[1742602414725,10.13668,1973.1,1972.7,5.85973]
[1742602414926,5.06843,1973.0,1972.7,5.85973]
[1742602415303,5.06843,1973.0,1972.7,6.2493028]
[1742602415931,5.06881,1972.9,1972.7,0.3895728]
[1742602416232,5.06881,1972.9,1972.6,5.06943]
[1742602417336,10.13704,1973.0,1972.6,5.06943]
[1742602417504,5.06868,1972.9,1972.6,5.06936]
[1742602418517,5.06868,1972.9,1972.7,1.0093289]
[1742602419424,5.06868,1972.9,1972.6,5.44062563]
[1742602420235,5.06868,1972.9,1972.6,6.44863488]
[1742602421636,5.06845,1973.0,1972.7,5.06906]
[1742602422035,10.137,1973.0,1972.6,6.44855488]
[1742602422205,5.06845,1973.0,1972.6,6.44855488]
[1742602422638,5.06869,1972.9,1972.6,11.51786488]
[1742602423017,10.13703,1973.0,1972.6,11.51786488]
[1742602423218,5.06845,1973.0,1972.6,11.51786488]
[1742602423836,5.87428,1973.1,1972.7,5.06903]
[1742602424028,5.87428,1973.1,1972.7,10.13805]
[1742602424227,10.94264,1973.1,1972.7,10.13805]
[1742602424427,5.87428,1973.1,1972.7,5.06902]
[1742602424627,5.87428,1973.1,1972.8,5.85961]
[1742602424628,5.06818,1973.1,1972.8,5.85961]
[1742602424828,10.13649,1973.1,1972.8,5.85961]
[1742602425029,5.06818,1973.1,1972.8,5.85961]
[1742602425224,5.06818,1973.1,1972.8,0.7907]
[1742602425429,5.0685,1973.0,1972.8,0.7907]
[1742602426340,5.0685,1973.0,1972.8,27.5887]
[1742602427013,5.0685,1973.0,1972.8,26.798]
[1742602427640,5.06818,1973.1,1972.8,31.86689]
[1742602429340,5.06818,1973.1,1972.8,26.798]
[1742602429523,5.06842,1973.0,1972.8,26.798]
[1742602429869,10.13652,1973.1,1972.8,26.798]
[1742602430957,5.06818,1973.1,1972.8,26.798]
[1742602431313,10.1365,1973.1,1972.8,26.798]
[1742602432155,5.06842,1973.0,1972.8,26.798]
[1742602432635,5.06818,1973.1,1972.8,26.798]
[1742602433117,5.06818,1973.1,1972.8,31.86693]
[1742602433880,10.13649,1973.1,1972.8,26.798]
[1742602434176,5.06844,1973.0,1972.8,26.798]
[1742602436458,5.06868,1972.9,1972.8,26.798]
[1742602443551,5.86538,1972.9,1972.8,26.798]
[1742602444078,5.07022,1972.3,1972.2,26.796]
[1742602444251,5.07022,1972.3,1972.2,31.502]
[1742602444654,5.07022,1972.3,1972.2,26.796]
[1742602444893,6.163908,1972.3,1972.2,26.796]
[1742602445385,6.993008,1972.3,1972.2,26.796]
[1742602452093,10.1401,1972.4,1972.2,26.796]
[1742602452442,5.07022,1972.3,1972.2,26.796]
[1742602455892,11.16979,1972.5,1972.2,26.796]
[1742602456197,16.23968,1972.5,1972.2,26.796]
[1742602456406,5.06999,1972.4,1972.2,26.796]
[1742602456871,5.07022,1972.3,1972.2,26.796]
[1742602457075,5.06999,1972.4,1972.2,26.796]
[1742602457705,5.07022,1972.3,1972.2,26.796]
[1742602464005,0.8291,1972.7,1972.3,5.83344]
[1742602464213,10.13873,1972.7,1972.3,5.83344]
[1742602465212,5.06922,1972.7,1972.4,5.06977]
[1742602466078,5.06922,1972.7,1972.3,6.21656599]
[1742602466605,5.06922,1972.7,1972.5,0.7634]
[1742602467204,10.1386,1972.7,1972.5,0.7634]
[1742602467428,5.06922,1972.7,1972.5,0.7634]
[1742602468508,5.06908,1972.8,1972.5,0.7634]
[1742602469209,10.13819,1972.8,1972.5,0.7634]
[1742602470009,5.06926,1972.7,1972.5,0.7634]
[1742602471009,5.06908,1972.8,1972.5,0.7634]
[1742602471217,10.13819,1972.8,1972.5,0.7634]
[1742602471620,5.06908,1972.8,1972.5,0.7634]
[1742602471790,5.06908,1972.8,1972.5,5.83301]
[1742602472120,5.06908,1972.8,1972.6,4.706]
[1742602473324,10.13817,1972.8,1972.6,4.706]
[1742602474594,10.13818,1972.8,1972.6,4.706]
[1742602474794,5.06919,1972.7,1972.6,4.706]
[1742602475429,5.06908,1972.8,1972.6,4.706]
[1742602478027,5.06908,1972.8,1972.6,31.507]
[1742602478729,10.13819,1972.8,1972.6,31.507]
[1742602480517,5.06908,1972.8,1972.6,31.507]
[1742602480903,5.0687,1972.9,1972.6,31.507]
[1742602481228,5.84962,1973.0,1972.6,36.57633]
[1742602481598,5.06881,1972.9,1972.6,31.507]
[1742602482297,10.13765,1972.9,1972.6,31.507]
[1742602483030,5.84954,1973.0,1972.6,31.507]
[1742602483202,5.84954,1973.0,1972.6,36.57636]
[1742602483402,5.06881,1972.9,1972.6,36.57636]
[1742602484333,10.1377,1972.9,1972.6,31.507]
[1742602484636,5.06898,1972.8,1972.6,31.507]
[1742602485527,5.06881,1972.9,1972.6,31.507]
[1742602486232,10.13764,1972.9,1972.6,31.507]
[1742602486831,5.06881,1972.9,1972.6,31.507]
[1742602487135,10.13766,1972.9,1972.6,31.507]
[1742602488727,5.06894,1972.8,1972.6,31.507]
[1742602490635,5.06902,1972.8,1972.6,31.507]
[1742602494242,10.13815,1972.8,1972.6,31.507]
[1742602494447,5.06902,1972.8,1972.6,31.507]
[1742602494740,5.06919,1972.7,1972.6,31.507]
[1742602495536,5.06902,1972.8,1972.6,32.2665]
[1742602496350,10.13811,1972.8,1972.6,32.2665]
[1742602497225,10.13811,1972.8,1972.6,5.4655]
[1742602498542,5.06919,1972.7,1972.6,4.706]
[1742602500245,5.06902,1972.8,1972.6,4.706]
[1742602501452,10.13812,1972.8,1972.6,4.706]
[1742602501949,10.13812,1972.8,1972.6,31.504]
[1742602503451,5.06919,1972.7,1972.6,31.504]
[1742602504249,0.7718,1972.9,1972.6,31.504]
[1742602504456,5.06894,1972.8,1972.6,31.504]
[1742602504655,5.06887,1972.9,1972.6,31.504]
[1742602504854,6.9007,1973.1,1972.6,31.504]
[1742602504855,5.06907,1972.8,1972.6,31.504]
[1742602505022,10.13824,1972.8,1972.6,31.504]
[1742602505224,10.13819,1972.8,1972.6,31.504]
[1742602505426,5.06919,1972.7,1972.6,31.504]
[1742602509227,5.86989,1972.7,1972.6,26.798]
[1742602510053,6.963786,1972.7,1972.6,26.798]
[1742602510658,5.06907,1972.8,1972.6,26.798]
[1742602510864,5.06919,1972.7,1972.6,26.798]
[1742602512369,6.9007,1973.1,1972.6,36.56739]
[1742602512538,5.0686,1973.0,1972.6,36.56739]
[1742602512731,5.06869,1972.9,1972.6,36.56739]
[1742602513155,5.0686,1973.0,1972.6,36.56739]
[1742602513156,5.0686,1973.0,1972.6,41.63665]
[1742602513328,10.13723,1973.0,1972.6,36.56726]
[1742602513529,5.0686,1973.0,1972.6,41.63652]
[1742602513745,10.13717,1973.0,1972.7,5.82928]
[1742602513954,5.06857,1973.0,1972.7,1.77158234]
[1742602514160,0.8007,1973.1,1972.7,1.77158234]
[1742602514356,5.06826,1973.1,1972.7,1.77158234]
[1742602514562,5.06849,1973.0,1972.7,6.84068234]
[1742602514932,5.06849,1973.0,1972.7,6.84063234]
[1742602515529,6.1,1973.2,1972.9,5.06846]
[1742602515733,8.87104863,1973.3,1973.0,5.06838]
[1742602515954,8.07034863,1973.3,1973.0,5.06838]
[1742602516161,3.00262863,1973.3,1973.0,14.83661]
[1742602516459,3.00262863,1973.3,1973.1,5.06814]
[1742602517570,3.00262863,1973.3,1973.2,5.828]
[1742602517948,17.03416,1973.7,1973.3,10.13505]
[1742602518149,10.93416,1973.7,1973.3,10.13505]
[1742602518367,0.8007,1973.7,1973.2,0.7601]
[1742602518663,11.16632,1973.9,1973.4,5.06723]
[1742602518664,5.0665,1973.8,1973.4,5.06723]
[1742602518859,10.13344,1973.7,1973.4,31.504]
[1742602519040,5.06664,1973.7,1973.4,31.504]
[1742602519441,5.06664,1973.7,1973.4,36.57137]
[1742602520267,5.06664,1973.7,1973.4,31.504]
[1742602520268,5.06692,1973.6,1973.4,31.504]
[1742602520485,5.06664,1973.7,1973.4,31.504]
[1742602520649,10.13342,1973.7,1973.4,31.504]
[1742602520859,10.13344,1973.7,1973.4,31.504]
[1742602521350,10.13343,1973.7,1973.4,31.504]
[1742602521850,5.06637,1973.8,1973.4,31.504]
[1742602522052,5.06637,1973.8,1973.5,5.87682]
[1742602522257,10.13289,1973.8,1973.5,5.87682]
[1742602522476,5.06664,1973.7,1973.5,0.8097]
[1742602523163,5.06664,1973.7,1973.4,31.504]
[1742602523369,5.06697,1973.6,1973.4,31.504]
[1742602523566,5.06664,1973.7,1973.4,31.504]
[1742602524150,10.13343,1973.7,1973.4,31.504]
[1742602524351,5.06664,1973.7,1973.4,31.504]
[1742602524867,10.13343,1973.7,1973.4,31.504]
[1742602525067,5.066,1974.0,1973.5,0.8097]
[1742602525297,5.06612,1973.9,1973.6,5.0668]
[1742602525634,5.06589,1974.0,1973.6,5.06688]
[1742602525841,5.06589,1974.0,1973.6,10.13358]
[1742602526040,10.13191,1974.0,1973.6,10.13358]
[1742602526258,5.06589,1974.0,1973.6,5.0667]
[1742602526545,5.06612,1973.9,1973.6,6.05962722]
[1742602527241,10.13194,1974.0,1973.6,6.05962722]
[1742602528555,5.06612,1973.9,1973.6,0.99292722]
[1742602529557,10.1324,1973.9,1973.6,0.99292722]
[1742602530245,5.06612,1973.9,1973.6,0.99292722]
[1742602531272,5.06612,1973.9,1973.6,6.05978722]
[1742602531882,10.1324,1973.9,1973.6,0.99292722]
[1742602532070,5.06612,1973.9,1973.6,0.99292722]
[1742602532267,5.06637,1973.8,1973.6,0.99292722]
[1742602534281,10.13233,1973.9,1973.6,0.99292722]
[1742602534579,10.13239,1973.9,1973.6,0.99292722]
[1742602534761,10.13239,1973.9,1973.7,26.786]
[1742602535079,10.13239,1973.9,1973.7,27.1691764]
[1742602535483,5.06636,1973.8,1973.7,27.1691764]
[1742602535985,5.06612,1973.9,1973.7,27.9514764]
[1742602536478,5.06588,1974.0,1973.7,27.9514764]
[1742602536652,5.06614,1973.9,1973.7,27.9514764]
[1742602537199,5.06588,1974.0,1973.7,27.9514764]
[1742602537363,5.06588,1974.0,1973.7,33.0179764]
[1742602538754,5.06588,1974.0,1973.8,4.696]
[1742602539854,5.06611,1973.9,1973.8,4.696]
[1742602540055,10.13184,1974.0,1973.8,4.696]
[1742602540256,5.06588,1974.0,1973.8,4.696]
[1742602540685,10.13132,1974.1,1973.8,4.696]
[1742602540861,13.92199,1974.2,1973.9,5.06599]
[1742602541066,8.85648,1974.2,1973.8,4.696]
[1742602541286,5.0656,1974.1,1973.8,9.76229]
[1742602541781,10.13138,1974.1,1973.8,9.76229]
[1742602541981,5.06587,1974.0,1973.8,4.696]
[1742602542508,10.13135,1974.1,1973.8,4.696]
[1742602542790,5.06585,1974.0,1973.8,4.696]
[1742602543583,5.0656,1974.1,1973.8,4.696]
[1742602543789,10.13144,1974.1,1973.8,4.696]
[1742602543953,5.0656,1974.1,1973.8,4.696]
[1742602544157,10.13138,1974.1,1973.8,4.696]
[1742602544357,5.06586,1974.0,1973.9,26.783]
[1742602544770,5.0656,1974.1,1973.9,26.783]
[1742602545289,10.13137,1974.1,1973.9,26.783]
[1742602545591,5.0656,1974.1,1973.9,26.783]
[1742602546191,0.7911,1974.2,1973.9,26.783]
[1742602546403,5.06519,1974.3,1973.9,26.783]
[1742602546404,1e-05,1974.3,1973.9,26.783]
[1742602546570,1e-05,1974.3,1974.0,5.84801]
[1742602546770,1e-05,1974.3,1974.1,5.11609321]
[1742602546972,1e-05,1974.3,1974.1,5.06544]
[1742602547300,1e-05,1974.3,1974.2,4.694]
[1742602551978,1e-05,1974.3,1974.2,5.08392314]
[1742602554378,1e-05,1974.3,1974.2,10.14926314]
[1742602554782,1e-05,1974.3,1974.2,10.94556314]
[1742602556301,1e-05,1974.3,1974.2,19.93556314]
[1742602556507,1e-05,1974.3,1974.2,22.93556314]
[1742602558800,1e-05,1974.3,1974.2,23.48556314]
[1742602559121,1e-05,1974.3,1974.2,23.61899327]
[1742602559891,1e-05,1974.3,1974.2,24.16899327]
[1742602561299,1e-05,1974.3,1974.2,24.76214637]
[1742602561502,0.7786,1975.5,1975.2,5.06257]
[1742602561702,0.7786,1975.5,1975.3,31.479]
[1742602562626,0.7786,1975.5,1975.3,36.54149]
[1742602562809,5.84018,1975.7,1975.3,36.54133]
[1742602563010,5.84018,1975.7,1975.4,5.06225]
[1742602563206,5.84018,1975.7,1975.4,5.43708079]
[1742602563411,5.84018,1975.7,1975.4,0.37483079]
[1742602563611,5.84018,1975.7,1975.3,41.60381]
[1742602564017,0.7786,1975.7,1975.4,5.06222]
[1742602564420,0.1185805,1975.9,1975.7,5.0614]
[1742602564634,5.1795605,1975.9,1975.8,4.706]
[1742602564829,5.1795605,1975.9,1975.8,4.705]
[1742602565056,0.1185805,1975.9,1975.8,4.705]
[1742602566213,5.1795605,1975.9,1975.8,4.705]
[1742602567008,7.03509755,1975.9,1975.8,4.705]
[1742602568303,6.0110605,1975.9,1975.8,4.705]
[1742602568833,5.06174,1975.7,1975.6,4.713]
[1742602569416,5.06133,1975.8,1975.6,4.713]
[1742602569749,6.0111005,1975.9,1975.6,4.713]
[1742602569911,5.1796005,1975.9,1975.6,4.713]
[1742602570430,0.1185805,1975.9,1975.7,5.06137]
[1742602571106,0.1185805,1975.9,1975.6,9.77474]
[1742602571309,0.1185805,1975.9,1975.7,5.06149]
[1742602572846,5.1795705,1975.9,1975.6,9.77474]
[1742602573141,0.1185805,1975.9,1975.6,14.83631]
[1742602573356,0.1185805,1975.9,1975.7,5.06147]
[1742602573559,0.1185805,1975.9,1975.7,10.12283]
[1742602573760,0.1185805,1975.9,1975.7,5.06136]
[1742602574245,0.1185805,1975.9,1975.7,10.1227]
[1742602574414,0.1185805,1975.9,1975.8,5.06124]
[1742602574613,0.1185805,1975.9,1975.7,5.06134]
[1742602575231,0.1185805,1975.9,1975.7,10.12271]
[1742602575444,0.1185805,1975.9,1975.7,5.06134]
[1742602576314,0.1185805,1975.9,1975.6,15.76473]
[1742602576534,0.1185805,1975.9,1975.7,5.06127]
[1742602577140,0.1185805,1975.9,1975.8,26.758]
[1742602581354,5.1795605,1975.9,1975.8,26.758]
[1742602583453,5.9366605,1975.9,1975.8,26.758]
[1742602591456,0.1185805,1975.9,1975.8,26.758]
[1742602593350,0.1185805,1975.9,1975.8,31.81924]
[1742602594182,0.1185805,1975.9,1975.8,32.57574]
[1742602599160,0.1185805,1975.9,1975.8,26.758]
[1742602599365,5.1795605,1975.9,1975.8,31.467]
[1742602603360,0.1185805,1975.9,1975.8,31.467]
[1742602605587,0.1185805,1975.9,1975.8,36.52824]
[1742602608094,0.1185805,1975.9,1975.8,37.35694]
[1742602613695,0.1185805,1975.9,1975.8,40.35694]
[1742602613990,0.1185805,1975.9,1975.8,39.52924]
[1742602614189,0.1185805,1975.9,1975.8,40.32884]
[1742602614760,0.1185805,1975.9,1975.8,37.32884]
[1742602615103,0.1185805,1975.9,1975.8,26.758]
[1742602615265,0.8761805,1975.9,1975.8,31.471]
[1742602615594,0.8761805,1975.9,1975.8,26.758]
[1742602615895,5.9371605,1975.9,1975.8,26.758]
[1742602616070,5.9371605,1975.9,1975.8,31.473]
[1742602616590,5.9371605,1975.9,1975.8,26.758]
[1742602619778,0.8761805,1975.9,1975.8,26.758]
[1742602620163,0.1185805,1975.9,1975.8,26.758]
[1742602620369,0.1185805,1975.9,1975.8,31.81924]
[1742602621707,0.1185805,1975.9,1975.8,26.758]
[1742602622088,0.1185805,1975.9,1975.8,31.81924]
[1742602622509,0.1185805,1975.9,1975.8,32.61884]
[1742602622808,0.1185805,1975.9,1975.8,35.61884]
[1742602623385,0.1185805,1975.9,1975.8,44.60884]
[1742602624105,5e-07,1975.9,1975.8,45.15884]
[1742602624304,5e-07,1975.9,1975.8,45.84219512]
[1742602625605,5e-07,1975.9,1975.8,46.43534822]
[1742602627102,5e-07,1975.9,1975.8,47.45072534]
[1742602627282,0.54,1976.5,1976.3,3.0]
[1742602627491,0.54,1976.5,1976.4,19.576486]
[1742602627683,0.54,1976.5,1976.4,19.5259]
[1742602628285,0.54,1976.5,1976.4,18.7727]
[1742602628524,0.54,1976.5,1976.4,5.99]
[1742602628680,6.39324,1976.5,1976.4,10.716]
[1742602629003,6.39324,1976.5,1976.4,4.726]
[1742602629311,7.538492,1976.5,1976.4,4.726]
[1742602629507,6.39324,1976.5,1976.4,4.726]
[1742602629708,6.39324,1976.5,1976.1,5.06046]
[1742602629709,0.7938,1976.4,1976.1,4.728]
[1742602630023,5.85401,1976.2,1976.1,4.728]
[1742602634317,0.7938,1976.2,1976.1,4.728]
[1742602635221,5.85401,1976.2,1976.1,4.728]
[1742602636011,5.85401,1976.2,1976.0,4.729]
[1742602636200,5.06052,1976.1,1976.0,4.729]
[1742602637115,0.7938,1975.9,1975.8,31.488]
[1742602637315,5.85478,1975.9,1975.8,31.488]
[1742602637515,0.7938,1975.9,1975.8,31.488]
[1742602641318,5.85478,1975.9,1975.8,31.488]
[1742602641519,0.7938,1975.9,1975.8,31.488]
[1742602641914,5.06075,1976.0,1975.8,31.488]
[1742602642083,0.8087,1976.1,1975.8,31.488]
[1742602642913,0.8087,1976.3,1976.0,5.06057]
[1742602643307,0.8087,1976.3,1976.1,5.06046]
[1742602643508,5.05982,1976.4,1976.1,5.06037]
[1742602643708,5.86852,1976.4,1976.1,5.06037]
[1742602643893,10.92838,1976.4,1976.1,5.06037]
[1742602644101,5.86852,1976.4,1976.1,5.06037]
[1742602645116,10.92839,1976.4,1976.0,5.06057]
[1742602645323,5.86852,1976.4,1976.0,10.12117]
[1742602645522,10.92838,1976.4,1976.0,10.12117]
[1742602645817,1.43079014,1976.4,1975.9,5.06095]
[1742602646017,0.54,1976.5,1975.8,36.54913]
[1742602646018,0.8087,1976.1,1975.8,36.54913]
[1742602646224,5.86918,1976.1,1975.8,31.488]
[1742602646715,5.06074,1976.0,1975.8,31.488]
[1742602649299,5.06098,1975.9,1975.8,31.488]
[1742602650224,5.06074,1976.0,1975.8,31.488]
[1742602650426,0.8087,1976.1,1975.8,36.54915]
[1742602650811,5.86917,1976.1,1975.8,36.54915]
[1742602653623,5.86917,1976.1,1975.8,41.6103]
[1742602653823,5.86917,1976.1,1975.8,36.54915]
[1742602655328,5.06006,1976.3,1975.9,5.06085]
[1742602655517,5.85866,1976.3,1976.0,26.752]
[1742602655911,10.91877,1976.3,1976.0,26.752]
[1742602656107,5.85866,1976.3,1976.0,26.752]
[1742602656502,0.54,1976.5,1976.1,5.06044]
[1742602656503,5.05972,1976.4,1976.1,5.06044]
[1742602657636,10.11958,1976.4,1976.1,5.06044]
[1742602657821,5.05972,1976.4,1976.0,31.81256]
[1742602658023,5.05972,1976.4,1976.1,5.06045]
[1742602658505,6.39808,1976.5,1976.1,5.06045]
[1742602658506,6.39808,1976.5,1976.2,9.78913]
[1742602658708,11.45772,1976.5,1976.2,4.729]
[1742602658908,6.39808,1976.5,1976.2,4.729]
[1742602660135,6.39808,1976.5,1976.2,5.10081162]
[1742602660308,6.39808,1976.5,1976.2,10.16102162]
[1742602660630,11.4577,1976.5,1976.2,5.10081162]
[1742602660833,5.05986,1976.4,1976.2,4.729]
[1742602661205,10.11978,1976.4,1976.2,4.729]
[1742602661642,11.45773,1976.5,1976.2,4.729]
[1742602662139,5.0597,1976.4,1976.2,4.729]
[1742602663041,5.05996,1976.3,1976.2,4.729]
[1742602664336,5.0597,1976.4,1976.2,4.729]
[1742602664538,10.11957,1976.4,1976.2,4.729]
[1742602664843,5.05996,1976.3,1976.2,4.729]
[1742602665153,5.05996,1976.3,1976.2,31.479]
[1742602667144,10.11951,1976.4,1976.2,31.479]
[1742602667347,5.0597,1976.4,1976.2,31.479]
[1742602668449,10.11961,1976.4,1976.2,31.479]
[1742602668840,5.05996,1976.3,1976.2,31.479]
[1742602669211,10.11959,1976.4,1976.2,31.479]